bitfinex/quotes_BTCUSD_20251021
["timestamp","ask_amount","ask_price","bid_price","bid_amount"]
[1761090488393,2.34004956,108680.0,108670.0,0.19209549]
[1761090488591,2.52407605,108680.0,108670.0,0.00805206]
[1761090488844,2.52407605,108680.0,108670.0,0.19209549]
[1761090489092,2.52407605,108680.0,108670.0,0.00805206]
[1761090489268,2.54368549,108680.0,108670.0,0.00705206]
[1761090489529,2.6335045,108680.0,108670.0,0.00705206]
[1761090490416,0.34004956,108680.0,108670.0,0.19009549]
[1761090490631,4.956e-05,108680.0,108670.0,0.43533678]
[1761090490865,4.956e-05,108680.0,108670.0,0.34551777]
[1761090491273,4.956e-05,108680.0,108670.0,0.30933549]
[1761090491478,0.34004956,108680.0,108670.0,0.19009549]
[1761090491706,0.34004956,108680.0,108670.0,0.19209549]
[1761090492113,0.34004956,108680.0,108670.0,0.19109549]
[1761090492489,4.956e-05,108680.0,108670.0,0.19209549]
[1761090498035,0.34004956,108680.0,108670.0,0.19209549]
[1761090498892,2.34004956,108680.0,108670.0,0.19109549]
[1761090499223,2.34004956,108680.0,108670.0,0.19209549]
[1761090499429,2.34004956,108680.0,108670.0,0.19109549]
[1761090499673,2.64327605,108680.0,108670.0,0.19109549]
[1761090499878,2.64327605,108680.0,108670.0,0.00705206]
[1761090500047,2.75270049,108680.0,108670.0,0.00805206]
[1761090500632,2.75270049,108680.0,108670.0,0.00705206]
[1761090500832,2.75270049,108680.0,108670.0,0.00605206]
[1761090502221,2.76713313,108680.0,108670.0,0.00605206]
[1761090503159,2.67731412,108680.0,108670.0,0.00605206]
[1761090503931,2.67731412,108680.0,108670.0,0.19009549]
[1761090503932,2.49324763,108680.0,108670.0,0.19009549]
[1761090504156,2.67727412,108680.0,108670.0,0.19009549]
[1761090504543,2.49324763,108680.0,108670.0,0.19009549]
[1761090504880,2.67727412,108680.0,108670.0,0.19009549]
[1761090505660,2.49324763,108680.0,108670.0,0.19009549]
[1761090505868,2.66284148,108680.0,108670.0,0.19009549]
[1761090506068,2.75266049,108680.0,108670.0,0.19009549]
[1761090506404,2.75266049,108680.0,108670.0,0.00605206]
[1761090508056,2.75266049,108680.0,108670.0,0.19009549]
[1761090508465,2.75266049,108680.0,108670.0,0.00605206]
[1761090509988,2.77715712,108680.0,108670.0,0.00605206]
[1761090511884,2.68733811,108680.0,108670.0,0.00605206]
[1761090512262,2.69550366,108680.0,108670.0,0.00605206]
[1761090512480,2.04412707,108680.0,108670.0,0.00605206]
[1761090512628,2.34731356,108680.0,108670.0,0.19009549]
[1761090512836,2.50328707,108680.0,108670.0,0.19009549]
[1761090513047,2.02065499,108680.0,108670.0,0.19009549]
[1761090513252,2.13981499,108680.0,108670.0,0.19009549]
[1761090513509,2.47881499,108680.0,108670.0,0.19009549]
[1761090515508,2.66284148,108680.0,108670.0,0.00805206]
[1761090515984,2.68731356,108680.0,108670.0,0.00805206]
[1761090516406,2.77713257,108680.0,108670.0,0.00805206]
[1761090516628,2.77713257,108680.0,108670.0,0.00705206]
[1761090516831,2.77713257,108680.0,108670.0,0.00605206]
[1761090517039,2.68731356,108680.0,108670.0,0.19009549]
[1761090517254,2.47881499,108680.0,108670.0,0.19009549]
[1761090517746,2.66284148,108680.0,108670.0,0.19009549]
[1761090518276,2.47881499,108680.0,108670.0,0.19009549]
[1761090518518,2.66284148,108680.0,108670.0,0.19009549]
[1761090519580,2.47881499,108680.0,108670.0,0.19009549]
[1761090520034,2.66284148,108680.0,108670.0,0.19009549]
[1761090520460,2.47881499,108680.0,108670.0,0.19009549]
[1761090523931,2.75266049,108680.0,108670.0,0.00605206]
[1761090524336,2.77713257,108680.0,108670.0,0.00605206]
[1761090524722,2.68731356,108680.0,108670.0,0.00605206]
[1761090525163,2.68731356,108680.0,108670.0,0.19009549]
[1761090525374,2.50328707,108680.0,108670.0,0.19009549]
[1761090525585,2.47881499,108680.0,108670.0,0.19009549]
[1761090525788,2.66284148,108680.0,108670.0,0.19009549]
[1761090527391,2.68731356,108680.0,108670.0,0.19009549]
[1761090528033,2.68731356,108680.0,108670.0,0.30917549]
[1761090528034,0.35965499,108680.0,108670.0,0.30917549]
[1761090528915,0.35892348,108680.0,108670.0,0.30917549]
[1761090529130,0.35892348,108680.0,108670.0,0.31117549]
[1761090530223,0.34,108680.0,108670.0,0.31117549]
[1761090532410,2.32754563,108700.0,108690.0,0.18400956]
[1761090532614,0.18400956,108690.0,108670.0,0.19104343]
[1761090532817,2.13699554,108680.0,108670.0,0.19104343]
[1761090533037,2.11904,108680.0,108670.0,0.19104343]
[1761090534298,2.11904,108680.0,108670.0,0.18904343]
[1761090535125,2.34,108680.0,108670.0,0.18904343]
[1761090539530,0.34,108680.0,108670.0,0.23825752]
[1761090540131,0.34,108680.0,108670.0,0.19009549]
[1761090540949,0.35960778,108680.0,108670.0,0.19009549]
[1761090541544,0.01960778,108680.0,108670.0,0.19009549]
[1761090541757,2.01795554,108690.0,108680.0,0.18402649]
[1761090541971,2.01961251,108690.0,108680.0,0.18402649]
[1761090542368,2.03404294,108690.0,108680.0,0.18402649]
[1761090542574,2.01961251,108690.0,108680.0,0.18402649]
[1761090543691,2.01961251,108690.0,108680.0,0.22133348]
[1761090544112,2.01961251,108690.0,108680.0,0.18402649]
[1761090544469,2.35961251,108690.0,108680.0,0.20242913]
[1761090545297,2.35961251,108690.0,108680.0,0.18402649]
[1761090546315,2.34,108680.0,108670.0,0.18904343]
[1761090546526,2.35961251,108680.0,108670.0,0.18904343]
[1761090550159,2.35961251,108680.0,108670.0,0.20535521]
[1761090551208,0.35961251,108680.0,108670.0,0.20535521]
[1761090551433,2.35961251,108680.0,108670.0,0.18904343]
[1761090552683,2.35961251,108680.0,108670.0,0.19004343]
[1761090552882,2.35961251,108680.0,108670.0,0.19209549]
[1761090553945,0.35961251,108680.0,108670.0,0.19209549]
[1761090559681,2.35961251,108680.0,108670.0,0.19209549]
[1761090561870,2.34,108680.0,108670.0,0.19209549]
[1761090562373,2.35961488,108680.0,108670.0,0.19209549]
[1761090564277,2.54364137,108680.0,108670.0,0.19209549]
[1761090564717,2.54364137,108680.0,108670.0,0.19109549]
[1761090565575,2.54364137,108680.0,108670.0,0.00605206]
[1761090567943,2.35961488,108680.0,108670.0,0.19009549]
[1761090568197,2.54364137,108680.0,108670.0,0.00605206]
[1761090568398,2.63346038,108680.0,108670.0,0.00605206]
[1761090568611,2.65796185,108680.0,108670.0,0.00605206]
[1761090568818,2.69062403,108680.0,108670.0,0.00605206]
[1761090569023,2.66612256,108680.0,108670.0,0.00605206]
[1761090569460,2.6906267,108680.0,108670.0,0.00605206]
[1761090570503,2.4167812,108680.0,108670.0,0.00605206]
[1761090570711,2.56814551,108680.0,108670.0,0.00605206]
[1761090571769,2.56814551,108680.0,108670.0,0.19009549]
[1761090571980,2.38411902,108680.0,108670.0,0.19009549]
[1761090572191,2.35961488,108680.0,108670.0,0.19009549]
[1761090572412,2.35961488,108680.0,108670.0,0.22751086]
[1761090572413,0.01961488,108680.0,108670.0,0.22751086]
[1761090572622,2.0,108690.0,108680.0,0.18402649]
[1761090572881,2.35959686,108690.0,108680.0,0.18402649]
[1761090573507,2.01959686,108690.0,108680.0,0.18402649]
[1761090573716,2.34,108680.0,108670.0,0.19004343]
[1761090573929,2.3595952,108680.0,108670.0,0.19004343]
[1761090574150,2.34,108680.0,108670.0,0.19004343]
[1761090574355,0.34,108680.0,108670.0,0.19004343]
[1761090574571,0.34,108680.0,108670.0,0.19104343]
[1761090574781,0.34,108690.0,108680.0,0.18402092]
[1761090574989,0.35959567,108690.0,108680.0,0.20342356]
[1761090575236,2.35959567,108690.0,108680.0,0.18502092]
[1761090575439,2.35959567,108690.0,108680.0,0.20242356]
[1761090575645,2.35959567,108690.0,108680.0,0.18402092]
[1761090576040,2.35959567,108690.0,108680.0,0.18502092]
[1761090576280,2.35959567,108690.0,108680.0,0.18602092]
[1761090577342,0.35959567,108690.0,108680.0,0.18602092]
[1761090577550,0.34,108690.0,108680.0,0.18602092]
[1761090577814,0.35443067,108700.0,108690.0,0.18400956]
[1761090578027,0.03649778,108710.0,108700.0,0.18399264]
[1761090578232,0.05608968,108710.0,108700.0,0.30279264]
[1761090578403,0.0195919,108710.0,108700.0,0.30279264]
[1761090578635,2.52450414,108720.0,108710.0,0.18397571]
[1761090578841,2.04423388,108720.0,108710.0,0.20237328]
[1761090579065,0.03926185,108720.0,108710.0,0.25288987]
[1761090579272,0.03926185,108720.0,108710.0,0.18397571]
[1761090579474,0.03926185,108720.0,108710.0,0.20237328]
[1761090579887,0.03926185,108720.0,108710.0,0.29219229]
[1761090580093,0.37266218,108740.0,108730.0,0.18394187]
[1761090580094,0.02450414,108740.0,108730.0,0.18394187]
[1761090580293,0.02664317,108750.0,108740.0,0.18392495]
[1761090580528,0.02220214,108750.0,108740.0,0.18392495]
[1761090580705,0.03068987,108750.0,108740.0,0.18392495]
[1761090581234,0.03068987,108750.0,108740.0,0.20231744]
[1761090581425,0.03068987,108750.0,108740.0,0.25650224]
[1761090581640,0.03068987,108750.0,108740.0,0.23810975]
[1761090581969,0.03068987,108750.0,108740.0,0.18392495]
[1761090581970,2.02220214,108750.0,108740.0,0.18392495]
[1761090582223,2.04670628,108750.0,108740.0,0.18392495]
[1761090583769,2.02220214,108750.0,108740.0,0.18392495]
[1761090587305,1.85962374,108750.0,108740.0,0.18392495]
[1761090587438,0.54839818,108760.0,108750.0,0.18390804]
[1761090587643,2.54854668,108760.0,108750.0,0.18390804]
[1761090587854,2.54889698,108760.0,108750.0,0.18390804]
[1761090588246,0.34,108740.0,108730.0,0.18394187]
[1761090588451,2.34,108740.0,108730.0,0.18394187]
[1761090589266,0.01734283,108750.0,108740.0,0.18392495]
[1761090589466,2.48358554,108760.0,108750.0,0.18390804]
[1761090589669,2.36486554,108760.0,108750.0,0.18390804]
[1761090589875,0.35797155,108760.0,108750.0,0.18390804]
[1761090590066,0.36643314,108760.0,108750.0,0.18390804]
[1761090590263,0.35797155,108760.0,108750.0,0.18390804]
[1761090590706,0.35797155,108760.0,108750.0,0.20229884]
[1761090591774,0.02643032,108760.0,108750.0,0.18390804]
[1761090591981,0.04591881,108760.0,108750.0,0.18390804]
[1761090592183,0.04591881,108760.0,108750.0,0.23256334]
[1761090593555,2.03746004,108760.0,108750.0,0.18490804]
[1761090593756,2.24571791,108760.0,108750.0,0.18490804]
[1761090593974,2.24571791,108760.0,108750.0,0.18590804]
[1761090594583,2.24571791,108760.0,108750.0,0.18390804]
[1761090594962,2.06182678,108760.0,108750.0,0.18390804]
[1761090595781,2.24571791,108760.0,108750.0,0.18390804]
[1761090597403,2.27838009,108760.0,108750.0,0.18390804]
[1761090598339,2.07012222,108760.0,108750.0,0.18390804]
[1761090598910,2.25401335,108760.0,108750.0,0.18390804]
[1761090599108,2.07012222,108760.0,108750.0,0.18390804]
[1761090599692,2.07012222,108760.0,108750.0,0.19570141]
[1761090600302,2.11911549,108760.0,108750.0,0.20229884]
[1761090600500,2.11911549,108760.0,108750.0,0.18390804]
[1761090600734,2.11911549,108760.0,108750.0,0.20229884]
[1761090601145,2.099627,108760.0,108750.0,0.20229884]
[1761090601351,2.11914584,108760.0,108750.0,0.20229884]
[1761090602367,2.08648366,108760.0,108750.0,0.20229884]
[1761090602686,2.11904582,108760.0,108750.0,0.20229884]
[1761090602889,0.07005255,108760.0,108750.0,0.20229884]
[1761090603782,0.07496425,108760.0,108750.0,0.20229884]
[1761090603989,0.09448309,108760.0,108750.0,0.77620226]
[1761090604188,0.06192093,108760.0,108750.0,0.39972834]
[1761090605471,0.06192093,108760.0,108750.0,0.30990933]
[1761090605909,0.06192093,108760.0,108750.0,0.31090933]
[1761090606532,0.06192093,108760.0,108750.0,0.31190933]
[1761090606958,0.06192093,108760.0,108750.0,0.40172834]
[1761090607183,0.09448309,108760.0,108750.0,0.40172834]
[1761090607390,0.01797155,108760.0,108750.0,0.40172834]
[1761090607965,0.01797155,108760.0,108750.0,0.31190933]
[1761090608169,0.01797155,108760.0,108750.0,0.18490804]
[1761090608379,0.01797155,108760.0,108750.0,0.30450804]
[1761090608778,0.01797155,108760.0,108750.0,0.43050933]
[1761090609187,0.01797155,108760.0,108750.0,0.42950933]
[1761090609388,0.01797155,108760.0,108750.0,0.42850933]
[1761090609548,0.01797155,108760.0,108750.0,0.49175276]
[1761090609955,0.01797155,108760.0,108750.0,0.49075276]
[1761090610532,0.01797155,108760.0,108750.0,0.33969032]
[1761090610757,0.01797155,108760.0,108750.0,0.30350804]
[1761090611213,0.01797155,108760.0,108750.0,0.30450804]
[1761090612801,0.01797155,108760.0,108750.0,0.30350804]
[1761090613612,0.01797155,108760.0,108750.0,0.42950933]
[1761090613811,0.01797155,108760.0,108750.0,0.88303267]
[1761090614290,0.01797155,108760.0,108750.0,0.51932834]
[1761090614704,0.01797155,108760.0,108750.0,0.52032834]
[1761090614906,0.01797155,108760.0,108750.0,0.39432705]
[1761090615111,0.01797155,108760.0,108750.0,0.30430811]
[1761090616860,2.54186268,108760.0,108750.0,0.18570811]
[1761090617107,2.54186268,108760.0,108750.0,0.002]
[1761090617689,2.56137773,108760.0,108750.0,0.002]
[1761090617888,2.65119674,108760.0,108750.0,0.001]
[1761090618095,2.65119674,108760.0,108750.0,0.002]
[1761090618670,2.65119674,108760.0,108730.0,0.19313814]
[1761090618671,2.0,108740.0,108730.0,0.19313814]
[1761090624835,2.0,108740.0,108730.0,0.19413814]
[1761090625006,2.0,108740.0,108730.0,0.19513814]
[1761090626625,2.0,108740.0,108730.0,0.21770594]
[1761090627205,2.0,108740.0,108730.0,0.19513814]
[1761090629249,2.0,108740.0,108730.0,0.19413814]
[1761090629659,2.0,108740.0,108730.0,0.19313814]
[1761090629882,2.0,108740.0,108730.0,0.19413814]
[1761090632121,1.8935,108740.0,108730.0,0.19413814]
[1761090632319,2.64242843,108750.0,108740.0,0.18392495]
[1761090632534,2.66197002,108750.0,108740.0,0.18392495]
[1761090635472,0.34,108730.0,108720.0,0.18394492]
[1761090635681,0.34,108730.0,108720.0,0.30242492]
[1761090636063,0.34,108730.0,108720.0,0.18394492]
[1761090636617,0.34,108730.0,108720.0,0.18494492]
[1761090636820,0.35442236,108740.0,108730.0,0.18394187]
[1761090637032,2.34,108740.0,108730.0,0.22083055]
[1761090637445,2.34,108740.0,108730.0,0.18394187]
[1761090638488,0.34,108740.0,108730.0,0.18394187]
[1761090638699,2.52392495,108740.0,108730.0,0.18394187]
[1761090639700,2.18392495,108740.0,108730.0,0.18394187]
[1761090640146,2.19834723,108740.0,108730.0,0.18394187]
[1761090642842,2.01442228,108740.0,108730.0,0.18394187]
[1761090644514,2.21291484,108740.0,108720.0,0.18394492]
[1761090644711,2.21291484,108740.0,108730.0,0.18394187]
[1761090644927,2.19334723,108740.0,108730.0,0.18394187]
[1761090645107,2.53334723,108740.0,108730.0,0.18394187]
[1761090645302,2.55292232,108740.0,108730.0,0.18394187]
[1761090647963,2.55792232,108740.0,108730.0,0.18394187]
[1761090648580,2.37399737,108740.0,108730.0,0.18394187]
[1761090649627,2.37399737,108740.0,108730.0,0.20233605]
[1761090650954,2.35957509,108740.0,108730.0,0.20233605]
[1761090652129,0.34,108730.0,108720.0,0.18394492]
[1761090652338,2.0,108720.0,108710.0,0.19317449]
[1761090652557,1.98542799,108720.0,108710.0,0.30237571]
[1761090652770,1.98542799,108720.0,108710.0,0.18397571]
[1761090653938,1.98542799,108720.0,108710.0,0.18497571]
[1761090655890,1.98542799,108720.0,108710.0,0.18397571]
[1761090656045,1.98542799,108720.0,108710.0,0.18497571]
[1761090656460,0.52397571,108710.0,108700.0,0.18613216]
[1761090656685,2.44382799,108710.0,108700.0,0.18628069]
[1761090657592,2.44382799,108710.0,108700.0,0.18728069]
[1761090658440,2.44382799,108710.0,108700.0,0.18828069]
[1761090658823,2.44382799,108710.0,108700.0,0.18728069]
[1761090661069,2.6278037,108710.0,108700.0,0.18728069]
[1761090661593,2.71762271,108710.0,108700.0,0.00328805]
[1761090661771,2.71762271,108710.0,108700.0,0.18728069]
[1761090662454,2.73717774,108710.0,108700.0,0.00228805]
[1761090662711,2.55320203,108710.0,108700.0,0.18628069]
[1761090662872,2.46338302,108710.0,108700.0,0.18628069]
[1761090663263,2.64735873,108710.0,108700.0,0.18628069]
[1761090663672,2.34498302,108710.0,108700.0,0.18628069]
[1761090663893,2.44378799,108710.0,108700.0,0.18628069]
[1761090664097,2.64731514,108710.0,108700.0,0.18628069]
[1761090664294,2.46333943,108710.0,108700.0,0.18628069]
[1761090664925,2.73713415,108710.0,108700.0,0.00228805]
[1761090667139,2.75156054,108710.0,108700.0,0.00228805]
[1761090668393,2.57298729,108710.0,108700.0,0.00228805]
[1761090669625,2.48316828,108710.0,108700.0,0.00228805]
[1761090673770,2.49759554,108710.0,108700.0,0.00228805]
[1761090674787,2.48316828,108710.0,108700.0,0.00228805]
[1761090676596,2.72836828,108710.0,108700.0,0.00228805]
[1761090677758,2.71394189,108710.0,108700.0,0.00228805]
[1761090678524,2.8037609,108710.0,108700.0,0.00228805]
[1761090679345,2.71394189,108710.0,108700.0,0.00228805]
[1761090680410,2.7383912,108710.0,108700.0,0.00228805]
[1761090684550,2.77095336,108710.0,108700.0,0.00228805]
[1761090685208,2.76801183,108710.0,108700.0,0.00228805]
[1761090685422,2.82317552,108710.0,108700.0,0.00228805]
[1761090685639,2.91299453,108710.0,108700.0,0.00228805]
[1761090686236,2.91399453,108710.0,108700.0,0.00228805]
[1761090686478,2.95017681,108710.0,108700.0,0.00228805]
[1761090686897,2.96038775,108710.0,108700.0,0.00228805]
[1761090687132,2.96138775,108710.0,108700.0,0.00228805]
[1761090687356,2.96138775,108710.0,108670.0,0.005]
[1761090687357,0.18402649,108680.0,108670.0,0.005]
[1761090687561,2.52343329,108680.0,108670.0,0.005]
[1761090687744,2.50547775,108680.0,108670.0,0.005]
[1761090687982,2.32101406,108680.0,108670.0,0.005]
[1761090688154,2.53272334,108680.0,108670.0,0.005]
[1761090688945,2.53272334,108680.0,108670.0,0.006]
[1761090689367,2.53272334,108680.0,108670.0,0.005]
[1761090691161,2.54715403,108680.0,108670.0,0.005]
[1761090691374,2.53272334,108680.0,108670.0,0.005]
[1761090693055,2.53272334,108680.0,108670.0,0.00605206]
[1761090694196,2.37767826,108680.0,108670.0,0.19009549]
[1761090694404,2.18853223,108680.0,108670.0,0.19009549]
[1761090694630,2.53485806,108680.0,108670.0,0.00605206]
[1761090697250,2.51036791,108680.0,108670.0,0.00605206]
[1761090697930,2.53485806,108680.0,108670.0,0.00605206]
[1761090698358,2.35083157,108680.0,108670.0,0.19009549]
[1761090698562,1.86853862,108680.0,108670.0,0.22751104]
[1761090698767,0.01956919,108680.0,108670.0,0.56949532]
[1761090698982,0.08481792,108700.0,108680.0,0.18402649]
[1761090699197,2.0,108690.0,108680.0,0.18402649]
[1761090699404,0.34,108680.0,108670.0,0.30724343]
[1761090699610,2.0195592,108680.0,108670.0,0.30724343]
[1761090699831,2.3595592,108680.0,108670.0,0.30724343]
[1761090700005,2.1529116,108680.0,108670.0,0.30724343]
[1761090700226,0.34,108680.0,108670.0,0.3600615]
[1761090700540,0.34,108680.0,108670.0,0.39624378]
[1761090700899,0.34,108680.0,108670.0,0.39724378]
[1761090701075,0.34,108680.0,108670.0,0.34442571]
[1761090701629,0.34,108680.0,108670.0,0.34342571]
[1761090701856,0.34,108680.0,108670.0,0.34542571]
[1761090708166,0.52402649,108680.0,108670.0,0.007]
[1761090708407,0.54359739,108680.0,108670.0,0.007]
[1761090708633,0.66175739,108680.0,108670.0,0.00805206]
[1761090708862,2.66175739,108680.0,108670.0,0.00805206]
[1761090709085,2.4777309,108680.0,108670.0,0.00805206]
[1761090709303,2.4777309,108680.0,108670.0,0.00705206]
[1761090709526,2.4777309,108680.0,108670.0,0.19209549]
[1761090709748,2.4777309,108680.0,108670.0,0.19109549]
[1761090710191,2.4777309,108680.0,108670.0,0.19209549]
[1761090710625,2.3595709,108680.0,108670.0,0.22971077]
[1761090710859,0.3595709,108680.0,108670.0,0.22871077]
[1761090711060,0.3595709,108680.0,108670.0,0.19209549]
[1761090713419,0.3595709,108680.0,108670.0,0.31021549]
[1761090716024,0.34,108680.0,108670.0,0.31021549]
[1761090719202,0.34,108680.0,108670.0,0.34639777]
[1761090719447,0.34,108680.0,108670.0,0.40221071]
[1761090720603,0.34,108680.0,108670.0,0.4298828]
[1761090721007,0.34,108680.0,108670.0,0.37406986]
[1761090724345,0.34,108680.0,108670.0,0.34639777]
[1761090725595,0.34,108680.0,108670.0,0.31021549]
[1761090725811,0.35959138,108680.0,108670.0,0.31021549]
[1761090729014,0.54361787,108680.0,108670.0,0.31021549]
[1761090729393,2.54361787,108680.0,108670.0,0.31021549]
[1761090731390,2.54361787,108680.0,108670.0,0.19209549]
[1761090731797,2.35959138,108680.0,108670.0,0.19209549]
[1761090732700,2.54361787,108680.0,108670.0,0.19209549]
[1761090733100,2.57129359,108680.0,108670.0,0.19209549]
[1761090735259,2.57129359,108680.0,108670.0,0.00805206]
[1761090735260,2.6611126,108680.0,108670.0,0.00805206]
[1761090735820,2.7791126,108680.0,108670.0,0.00805206]
[1761090736247,2.80356475,108680.0,108670.0,0.00805206]
[1761090736765,2.71374574,108680.0,108670.0,0.00605206]
[1761090736961,2.68929359,108680.0,108670.0,0.00605206]
[1761090738435,2.68931315,108680.0,108670.0,0.00605206]
[1761090739245,2.71382682,108680.0,108670.0,0.00605206]
[1761090740417,2.68931315,108680.0,108670.0,0.19009549]
[1761090740966,2.68931315,108680.0,108670.0,0.00605206]
[1761090743689,2.70374492,108680.0,108670.0,0.00605206]
[1761090744074,2.68931315,108680.0,108670.0,0.00605206]
[1761090745413,2.32163743,108680.0,108670.0,0.00605206]
[1761090746864,2.3360692,108680.0,108670.0,0.00605206]
[1761090747268,2.6760692,108680.0,108670.0,0.00605206]
[1761090750382,2.76588821,108680.0,108670.0,0.00605206]
[1761090753138,2.6760692,108680.0,108670.0,0.00605206]
[1761090755285,2.70058287,108680.0,108670.0,0.00605206]
[1761090756034,2.73323641,108680.0,108670.0,0.00605206]
[1761090756244,2.73640454,108680.0,108670.0,0.00605206]
[1761090756697,2.78538485,108680.0,108670.0,0.00605206]
[1761090756864,2.87520386,108680.0,108670.0,0.00605206]
[1761090757327,2.87521025,108680.0,108670.0,0.00605206]
[1761090757661,2.86077848,108680.0,108670.0,0.00605206]
[1761090758816,2.86177848,108680.0,108670.0,0.00605206]
[1761090759018,2.86277848,108680.0,108670.0,0.00605206]
[1761090759223,2.86177848,108680.0,108670.0,0.00605206]
[1761090759844,2.86277848,108680.0,108670.0,0.00605206]
[1761090763834,2.81379817,108680.0,108670.0,0.00605206]
[1761090764039,2.37567208,108680.0,108670.0,0.00605206]
[1761090764213,2.71567208,108680.0,108670.0,0.00605206]
[1761090764778,2.71467208,108680.0,108670.0,0.00605206]
[1761090764981,2.72185916,108680.0,108670.0,0.00605206]
[1761090765185,2.83518595,108680.0,108670.0,0.00605206]
[1761090765430,2.83418595,108680.0,108670.0,0.00605206]
[1761090765635,2.66057162,108680.0,108670.0,0.00605206]
[1761090765837,2.65957162,108680.0,108670.0,0.00605206]
[1761090766084,2.66057162,108680.0,108670.0,0.00605206]
[1761090766289,2.54924483,108680.0,108670.0,0.00605206]
[1761090766430,2.55024483,108680.0,108670.0,0.00605206]
[1761090771262,2.56467863,108680.0,108670.0,0.00605206]
[1761090771476,2.55024483,108680.0,108670.0,0.00605206]
[1761090774495,2.56467879,108680.0,108670.0,0.00605206]
[1761090774710,2.6544978,108680.0,108670.0,0.00605206]
[1761090775178,2.68715773,108680.0,108670.0,0.00605206]
[1761090775616,2.7116614,108680.0,108670.0,0.00605206]
[1761090776904,2.66268109,108680.0,108670.0,0.00605206]
[1761090777328,2.7116614,108680.0,108670.0,0.00605206]
[1761090779529,2.72609372,108680.0,108670.0,0.00605206]
[1761090782195,2.69343379,108680.0,108670.0,0.00605206]
[1761090782528,2.72961607,108680.0,108670.0,0.00605206]
[1761090783606,2.72861607,108680.0,108670.0,0.00605206]
[1761090784152,2.72961607,108680.0,108670.0,0.00605206]
[1761090785189,2.71518211,108680.0,108670.0,0.00605206]
[1761090787954,2.47130082,108680.0,108670.0,0.00605206]
[1761090788165,2.4857353,108680.0,108670.0,0.00605206]
[1761090788373,2.6034953,108680.0,108670.0,0.00605206]
[1761090789002,2.6014953,108680.0,108670.0,0.00605206]
[1761090789626,2.58706298,108680.0,108670.0,0.00605206]
[1761090789840,2.67688199,108680.0,108670.0,0.00605206]
[1761090792100,2.35862933,108660.0,108650.0,0.0002]
[1761090792349,2.55319394,108660.0,108650.0,0.00069574]
[1761090793179,2.25137357,108660.0,108650.0,0.18477305]
[1761090793383,2.33645147,108660.0,108650.0,0.18477305]
[1761090793793,2.52051184,108660.0,108650.0,0.18477305]
[1761090794883,2.01864627,108650.0,108640.0,0.00884865]
[1761090795091,2.48679774,108650.0,108640.0,0.00884865]
[1761090795308,2.4604052,108650.0,108640.0,0.00884865]
[1761090795765,2.5781252,108650.0,108640.0,0.00884865]
[1761090795991,2.66894421,108650.0,108640.0,0.00884865]
[1761090796221,2.61992106,108650.0,108640.0,0.00884865]
[1761090796469,2.699792,108650.0,108640.0,0.00884865]
[1761090796674,2.67349643,108650.0,108640.0,0.00884865]
[1761090796871,2.70610829,108650.0,108640.0,0.00884865]
[1761090798158,2.65708514,108650.0,108640.0,0.00884865]
[1761090798392,2.67152272,108650.0,108640.0,0.00884865]
[1761090798615,2.73637484,108650.0,108640.0,0.00990115]
[1761090798832,2.80539678,108650.0,108640.0,0.00990115]
[1761090799291,2.8068192,108650.0,108640.0,0.00990115]
[1761090799508,2.8282371,108650.0,108640.0,0.00990115]
[1761090799736,2.75921516,108650.0,108640.0,0.00990115]
[1761090800184,2.71495694,108650.0,108640.0,0.00990115]
[1761090800448,2.72495693,108650.0,108640.0,0.00990115]
[1761090800683,2.74637483,108650.0,108640.0,0.00990115]
[1761090801847,2.78365327,108650.0,108640.0,0.00990115]
[1761090802498,2.73939505,108650.0,108640.0,0.00990115]
[1761090802946,2.80771882,108650.0,108640.0,0.00990115]
[1761090803168,2.79771883,108650.0,108640.0,0.00990115]
[1761090803392,2.77313304,108650.0,108640.0,0.00990115]
[1761090803613,2.76313305,108650.0,108640.0,0.00990115]
[1761090803833,2.77313304,108650.0,108640.0,0.00990115]
[1761090804307,2.76313305,108650.0,108640.0,0.00990115]
[1761090804794,2.74869568,108650.0,108640.0,0.00990115]
[1761090805018,2.79771883,108650.0,108640.0,0.00990115]
[1761090805684,2.78887018,108650.0,108640.0,0.00990115]
[1761090805955,2.08780197,108650.0,108640.0,0.00990115]
[1761090806188,2.19729549,108650.0,108640.0,0.00990115]
[1761090806425,2.53729549,108650.0,108640.0,0.00990115]
[1761090807588,2.59354512,108650.0,108640.0,0.00990115]
[1761090807815,2.59254512,108650.0,108640.0,0.00990115]
[1761090808039,2.68236413,108650.0,108640.0,0.00990115]
[1761090808744,2.54352197,108650.0,108640.0,0.00990115]
[1761090808956,2.56790803,108650.0,108640.0,0.00990115]
[1761090818701,2.54352197,108650.0,108640.0,0.00990115]
[1761090819189,2.59254512,108650.0,108640.0,0.00990115]
[1761090819619,2.54352197,108650.0,108640.0,0.00990115]
[1761090820018,2.63334098,108650.0,108640.0,0.00990115]
[1761090820220,2.68236413,108650.0,108640.0,0.00990115]
[1761090822259,2.64975227,108650.0,108640.0,0.00990115]
[1761090823427,2.55993326,108650.0,108640.0,0.00990115]
[1761090828462,2.55993326,108650.0,108640.0,0.1939954]
[1761090828670,2.55993326,108650.0,108640.0,0.00990115]
[1761090836267,2.51091011,108650.0,108640.0,0.00990115]
[1761090840819,2.55986755,108650.0,108640.0,0.00990115]
[1761090841019,2.25807024,108650.0,108640.0,0.1939954]
[1761090841209,2.37563024,108650.0,108640.0,0.1939954]
[1761090841406,2.55970755,108650.0,108640.0,0.00990115]
[1761090841633,2.40827431,108650.0,108640.0,0.1939954]
[1761090841836,2.39383619,108650.0,108640.0,0.1939954]
[1761090842039,2.66773251,108650.0,108640.0,0.1939954]
[1761090843519,2.5779135,108650.0,108640.0,0.1939954]
[1761090844225,2.5779135,108650.0,108640.0,0.00990115]
[1761090845189,2.5779135,108650.0,108640.0,0.1939954]
[1761090845437,2.52895606,108650.0,108640.0,0.1939954]
[1761090845593,2.54339173,108650.0,108640.0,0.1939954]
[1761090845984,2.52895606,108650.0,108640.0,0.1939954]
[1761090846411,2.34487875,108650.0,108640.0,0.1939954]
[1761090846618,2.02935319,108650.0,108640.0,0.1939954]
[1761090847231,1.99670912,108650.0,108640.0,0.1939954]
[1761090847434,2.33670912,108650.0,108640.0,0.1939954]
[1761090847842,1.87914912,108650.0,108640.0,0.1939954]
[1761090848048,0.04458016,108650.0,108640.0,0.57234458]
[1761090848383,0.00049478,108650.0,108640.0,0.57234458]
[1761090848582,0.00049478,108650.0,108640.0,0.23017768]
[1761090848788,0.00049478,108650.0,108640.0,0.31757922]
[1761090849163,0.00049478,108650.0,108640.0,0.31857922]
[1761090849363,2.0268083,108670.0,108660.0,0.18406037]
[1761090849563,2.01955754,108670.0,108660.0,0.20251596]
[1761090849883,2.01955754,108670.0,108660.0,0.20286673]
[1761090850100,2.35955754,108670.0,108660.0,0.20286673]
[1761090850344,2.01955754,108670.0,108660.0,0.20286673]
[1761090850544,2.35955754,108670.0,108660.0,0.20286673]
[1761090850746,2.35955754,108670.0,108660.0,0.1854607]
[1761090851279,2.01955754,108670.0,108660.0,0.25257253]